Cogmind - Beta 13 @@@ ROGUE MODE // 2024.06.04 @ 19:55:39 Player: pakman Result: Destroyed by P-60 Hacker with Shock Rifle Performance ------------- Evolutions (0) 0 Regions Visited (3) 600 Robots Destroyed (10) 50 Value Destroyed (205) 205 Prototype IDs (0) 0 Alien Tech Used (0) 0 Bonus (6) 6 TOTAL SCORE: 861 Bonus ------- High Alert Combat Kills 6 Cogmind --------- Core Integrity 0/250 Matter 297/300 Energy 200/200 System Corruption 3% Temperature Cool (21) Movement Walking (120) Location -7/Recycling Parts ------- > --- POWER (1) -------- Subdweller Power Source > --- PROPULSION (2) --- Myomer Leg Compact Wheel > --- UTILITY (2) ------ Small Storage Unit > --- WEAPON (2) ------- Medium Laser Assault Rifle > --- INVENTORY (8) ---- Neutrino Core Subdweller Monowheel Scrap Engine Subdweller Optics Scrap Shield Subdweller Laser Peak State ------------ > --- POWER ------------ Subdweller Power Source > --- PROPULSION ------- Myomer Leg Compact Wheel > --- UTILITY ---------- Small Storage Unit Improved Terrain Scanner > --- WEAPON ----------- Medium Laser Assault Rifle > --- INVENTORY -------- Neutrino Core Subdweller Monowheel Scrap Engine Subdweller Optics Scrap Shield Subdweller Laser [Rating: 19] Favorites ----------- Power Ion Engine Engine Ion Engine Power Core Neutrino Core Propulsion Wheel Leg Myomer Leg Wheel Wheel Utility Small Storage Unit Device Seismic Detector Storage Small Storage Unit Weapon Medium Laser Energy Gun Medium Laser Ballistic Gun Assault Rifle Special Weapon Mining Laser Build | -11 -10 -10 -7 ------- Run | Yrd Mat Sub Rec Slots Evolved . | . . . . Power . | . . . . Propulsion . | . . . . Utility . | . . . . Weapon . | . . . . Parts Attached 22 | 8 1 13 . Power 5 | 2 . 3 . Engine 4 | 2 . 2 . Core 1 | . . 1 . Reactor . | . . . . Propulsion 6 | 2 . 4 . Treads . | . . . . Leg 1 | . . 1 . Wheel 5 | 2 . 3 . Hover . | . . . . Flight . | . . . . Utility 3 | 2 . 1 . Device 2 | 1 . 1 . Storage 1 | 1 . . . Processor . | . . . . Hackware . | . . . . Protection . | . . . . Artifact . | . . . . Weapon 8 | 2 1 5 . Energy Gun 4 | 1 . 3 . Energy Cannon . | . . . . Ballistic Gun 3 | 1 . 2 . Ballistic Cannon . | . . . . Launcher . | . . . . Special Weapon 1 | . 1 . . Impact Weapon . | . . . . Slashing Weapon . | . . . . Piercing Weapon . | . . . . Special Melee Weapon . | . . . . Unidentified Prototypes . | . . . . Parts Lost 8 | . . 7 1 Power 1 | . . 1 . Propulsion 2 | . . 2 . Utility 2 | . . 1 1 Weapon 3 | . . 3 . Highest Loss Streak 5 | . . 5 1 To Critical Strikes . | . . . . Average Slot Usage (%) 91 | . 100 87 97 Engine 11 | . 14 10 14 Leg 3 | . . 2 14 Wheel 22 | . 28 22 14 Device 13 | . 14 13 12 Storage 14 | . 14 14 14 Energy Gun 12 | . 14 10 14 Ballistic Gun 8 | . 8 6 14 Special Weapon 3 | . 5 3 . Naked Turns . | . . . . Heaviest Build 16 | 15 15 16 15 Greatest Support 36 | 20 20 36 25 Greatest Overweight (x) 1 | 1 . . . Average Overweight (x) . | . . . . Largest Inventory Capacity 8 | 8 8 8 8 Average Capacity 7 | 7 8 8 8 Most Carried 8 | 6 6 8 8 Average Carried 6 | 2 6 6 7 Final Capacity 8 | 8 8 8 8 Final Carried 8 | 6 6 6 8 Class Distribution -------------------- 51% | Mutant 48% | Scavenger-Mutant Dominant Class ---------------- Mutant | -10/Materials Scavenger-Mutant | -10/Subcaves Scavenger-Mutant | -7/Recycling Resources | -11 -10 -10 -7 ----------- Run | Yrd Mat Sub Rec Matter Collected 453 | 256 48 143 6 Remotely . | . . . . Salvage Created 302 | 123 . 149 30 Parts 17 | 10 . 7 . Haulers Intercepted . | . . . . Recyclers Shooed . | . . . . Parts Field Recycled . | . . . . Retrieved Matter . | . . . . Parts Self-Destructed 18 | . . 18 . Prevented . | . . . . Kills | -11 -10 -10 -7 ------- Run | Yrd Mat Sub Rec Combat Hostiles Destroyed 4 | . . 3 1 Guns 4 | . . 3 1 Classes Destroyed 5 | 2 . 3 . Tunneler 3 | 3 . . . Recycler 1 | 1 . . . Turret 2 | . . 2 . Swarmer 2 | . . 1 1 Grunt 2 | . . 2 . Best Kill Streak 4 | 4 . 4 1 Combat Bots Only 3 | . . 3 1 Max Kills in Single Turn 1 | 1 . 1 1 Gunslinging . | . . . . Exploded . | . . . . Melee . | . . . . Uniques/NPCs Destroyed . | . . . . Combat | -11 -10 -10 -7 -------- Run | Yrd Mat Sub Rec Hostile Shots Fired 126 | . . 100 26 Missed 43 | . . 38 5 Damage Taken 1066 | . . 766 300 Core 261 | . . 214 47 Absorbed by Shields . | . . . . Core Remaining (%) 100 | 100 . . . Volleys Fired 53 | 8 3 38 4 Largest 2 | 2 1 2 2 Hottest 100 | 70 100 80 70 Shots Fired 94 | 16 3 67 8 Gun 91 | 16 . 67 8 Cannon . | . . . . Launcher . | . . . . Special 3 | . 3 . . Kinetic 45 | 8 . 33 4 Thermal 49 | 8 3 34 4 Explosive . | . . . . Electromagnetic . | . . . . Robot Hit Streak 9 | 6 . 9 4 Robot Miss Streak 5 | 1 . 5 1 Penetration Max . | . . . . Secondary Targets . | . . . . Shots Hit Robots 60 | 11 . 43 6 Core Hits 24 | 5 . 16 3 Critical Kills . | . . . . Critical Parts Destroyed 1 | . . 1 . Critical Strikes 1 | . . 1 . Destroy 1 | . . 1 . Melee Attacks . | . . . . Impact . | . . . . Slashing . | . . . . Piercing . | . . . . Sneak Attacks . | . . . . Combat Hostiles . | . . . . Follow-up Attacks . | . . . . Damage Inflicted 888 | 169 . 628 91 Guns 888 | 169 . 628 91 Cannons . | . . . . Explosions . | . . . . Melee . | . . . . Ramming . | . . . . Kinetic 312 | 95 . 165 52 Thermal 576 | 74 . 463 39 Explosive . | . . . . Electromagnetic . | . . . . Impact . | . . . . Slashing . | . . . . Piercing . | . . . . Highest Corruption 3 | . . . 3 Average Corruption 1 | . . . 1 Corruption Purged . | . . . . Corruption Blocked . | . . . . Overload Shots . | . . . . Overflow Damage . | . . . . Projectiles . | . . . . Explosions . | . . . . Melee . | . . . . Knockbacks . | . . . . Impact . | . . . . Kinetic . | . . . . Secondary . | . . . . Self-Inflicted Damage . | . . . . Shots . | . . . . Rammed . | . . . . Targets Rammed . | . . . . Kicked . | . . . . Crushed . | . . . . Highest Temperature 36 | 36 20 24 21 Average Temperature 13 | 19 12 9 10 Received Heat Transfer 183 | . . 171 12 Siege Activations . | . . . . Robots Corrupted . | . . . . Combat Hostiles . | . . . . Parts Fried . | . . . . Impact Corruptions . | . . . . Robots Melted . | . . . . Combat Hostiles . | . . . . Parts Melted . | . . . . Heat Transferred 883 | 222 . 550 111 Parts Sabotaged . | . . . . Parts Stolen . | . . . . Parts Stripped . | . . . . Power Chain Reactions . | . . . . Alert | -11 -10 -10 -7 ------- Run | Yrd Mat Sub Rec Peak Influence 424 | 20 46 . 424 Initial 423 | . 13 . 423 Average 161 | 5 36 . 422 Maximum Alert Level 2 | . . . 2 Low Security (%) 66 | 100 100 . . Level 1 . | . . . . Level 2 33 | . . . 100 Level 3 . | . . . . Level 4 . | . . . . Level 5 . | . . . . High Security . | . . . . Max Security . | . . . . Squads Dispatched . | . . . . Investigation . | . . . . Extermination . | . . . . Reinforcement . | . . . . Assault . | . . . . Garrison . | . . . . Intercept . | . . . . Searches Triggered . | . . . . Construction Impeded . | . . . . Haulers Reinforced . | . . . . Active Scanning Responses . | . . . . Cargo Convoy Interrupts . | . . . . Stealth | -11 -10 -10 -7 --------- Run | Yrd Mat Sub Rec Distress Signals . | . . . . Communications Jammed . | . . . . Distress Signals . | . . . . Times Spotted 55 | . 2 50 3 Peak Tracking Total 6 | . 2 6 3 Tactical Retreats 6 | . 1 5 . Traps | -11 -10 -10 -7 ------- Run | Yrd Mat Sub Rec Traps Triggered . | . . . . Indirectly . | . . . . Trap Hack Attempts . | . . . . Triggered . | . . . . Disarmed . | . . . . Reprogrammed . | . . . . Reused . | . . . . Traps Extracted . | . . . . Installed . | . . . . Triggered . | . . . . Machines | -11 -10 -10 -7 ---------- Run | Yrd Mat Sub Rec Machines Disabled 1 | . . 1 . Max in Single Turn 1 | . . 1 . Machines Repaired . | . . . . Machines Dismantled . | . . . . Machines Sabotaged . | . . . . Overloaded Fab Kills . | . . . . Hacking | -11 -10 -10 -7 --------- Run | Yrd Mat Sub Rec Machines Accessed 1 | . . . 1 Terminals . | . . . . Fabricators . | . . . . Repair Stations . | . . . . Recycling Units 1 | . . . 1 Scanalyzers . | . . . . Garrison Access . | . . . . Total Hacks 3 | . . . 3 Successful 1 | . . . 1 Failed 2 | . . . 2 Catastrophic . | . . . . Database Lockouts . | . . . . Manual . | . . . . Terminals . | . . . . Fabricators . | . . . . Repair Stations . | . . . . Recycling Units 3 | . . . 3 Scanalyzers . | . . . . Garrison Access . | . . . . Terminal Hacks . | . . . . Fabricator Hacks . | . . . . Repair Station Hacks . | . . . . Recycling Unit Hacks 1 | . . . 1 Report Inventory 1 | . . . 1 Scanalyzer . | . . . . Garrison Access Hacks . | . . . . Unauthorized Hacks . | . . . . Terminals . | . . . . Fabricators . | . . . . Repair Stations . | . . . . Recycling Units . | . . . . Scanalyzers . | . . . . Garrison Access . | . . . . Data Cores Recovered . | . . . . Used . | . . . . Hacking Detections 1 | . . . 1 Full Trace Events . | . . . . Feedback Events . | . . . . Feedback Blocked . | . . . . Robot Schematics Acquired . | . . . . Robots Built . | . . . . Authchips . | . . . . Time . | . . . . Total Robot Build Rating . | . . . . Part Schematics Acquired . | . . . . Parts Built . | . . . . Authchips . | . . . . Time . | . . . . Total Part Build Rating . | . . . . Parts Repaired . | . . . . Time . | . . . . Parts Recycled . | . . . . Recycled Matter . | . . . . Retrieved Matter . | . . . . Retrieved Components . | . . . . Parts Scanalyzed . | . . . . Part Schematics Acquired . | . . . . Parts Damaged . | . . . . Bothacking | -11 -10 -10 -7 ------------ Run | Yrd Mat Sub Rec Used RIF Installer . | . . . . Robots Hacked . | . . . . Non-combat . | . . . . Combat . | . . . . Robot Hacks Applied . | . . . . Relay Couplers Released . | . . . . Fabnet Peak Effective % . | . . . . Robots Rewired 2 | . . . 2 Allies Hacked . | . . . . Hacks Repelled . | . . . . Allies | -11 -10 -10 -7 -------- Run | Yrd Mat Sub Rec Total Allies 2 | . . . 2 Largest Group 1 | . . . 1 Highest-Rated Group 20 | . . . 20 Highest-Rated Ally 20 | . . . 20 Total Orders . | . . . . Ally Attacks 3 | . . . 3 Total Damage 77 | . . . 77 Kills . | . . . . Allies Corrupted . | . . . . Allies Melted . | . . . . Intel | -11 -10 -10 -7 ------- Run | Yrd Mat Sub Rec Robot Analysis Total . | . . . . Derelict Logs Recovered . | . . . . Drone Launches . | . . . . Drone Recoveries . | . . . . Exploration | -11 -10 -10 -7 ------------- Run | Yrd Mat Sub Rec Turns Passed 1028 | 73 219 587 149 Spaces Moved 720 | 39 150 442 89 Core 1 | 1 . . . Treads . | . . . . Legs 181 | . . 92 89 Wheels 538 | 38 150 350 . Hover . | . . . . Flight . | . . . . Fastest Speed 50 | 50 80 80 120 Average Speed 97 | 81 80 100 120 Slowest Speed 120 | 95 80 120 120 Overloaded Moves . | . . . . Propulsion Burnouts . | . . . . Robots Hopped . | . . . . Cave-ins Triggered . | . . . . Exploration Rate (%) 16 | 5 17 22 22 Regions Visited 3 Branch Regions 2 Pre-discovered Areas 1 | . . 1 . Known Exits Taken . | . . . . Unknown Exits Taken 3 | 1 1 1 . Scrap Searched . | . . . . Spaces Dug 3 | . 3 . . Terrain Destroyed 3 | . 3 . . Melee . | . . . . Projectile 3 | . 3 . . AOE . | . . . . Terrain Rammed . | . . . . Walls Destroyed . | . . . . Machines Disabled . | . . . . Actions | -11 -10 -10 -7 --------- Run | Yrd Mat Sub Rec Total 944 | 60 239 522 123 Wait 111 | . 86 21 4 Move 717 | 38 149 441 89 Hop . | . . . . Pick Up 10 | 6 . 3 1 Fast Attach 12 | 7 . 5 . Attach 4 | . . 4 . Detach 1 | . . 1 . Swap 6 | 1 1 4 . Drop 4 | . . 4 . Fire 53 | 8 3 38 4 Melee . | . . . . Ram . | . . . . Kick . | . . . . Crush . | . . . . Escape Stasis . | . . . . Rewire 26 | . . 1 25 Trap . | . . . . Miscellaneous . | . . . . Route ------- -11/Scrapyard -10/Materials -10/Subcaves (discovered 2 exits: [*Mat] / *Rec) -7/Recycling History --------- Turn | Location | Event 13 | -11/Scrapyard | Discovered new exit (range 15) 74 | -11/Scrapyard | Entered Materials 292 | -10/Materials | Discovered new exit (range 3) 293 | -10/Materials | Entered Subcaves 305 | -10/Subcaves | Build established: Mutant 321 | -10/Subcaves | Discovered new exit (range 14) 329 | -10/Subcaves | Learned location of Zion (-7) 329 | -10/Subcaves | Met a Zionite searching for "candidates" 484 | -10/Subcaves | Discovered new exit (range 13) 693 | -10/Subcaves | Core integrity fell below 50% 705 | -10/Subcaves | Core integrity fell below 20% 733 | -10/Subcaves | Lost 5 parts (1p1n1u2w) 880 | -10/Subcaves | Entered Recycling 885 | -7/Recycling | Found Scrap Engine 1029 | -7/Recycling | Destroyed by P-60 Hacker with Shock Rifle Last Messages --------------- 00982_ Attempting to rewire R-06 Scavenger. 00999_ Attempting to rewire U-05 Engineer. 00999_ U-05 Engineer rewired. 01000_ Attempting to rewire R-06 Scavenger. 01002_ S-27 Virus springs to life. 01003_ P-60 Hacker springs to life. 01004_ Attempting to rewire B-48 Gladiator. 01007_ Imp. Terrain Scanner destroyed. 01009_ S-27 Virus destroyed. 01012_ Attempting to rewire B-48 Gladiator. 01012_ B-48 Gladiator rewired. 01013_ Attempting to rewire R-06 Scavenger. 01015_ P-60 Hacker fails to hack Gladiator 4a. 01015_ Attempting to rewire T-07 Excavator. 01018_ Attempting to rewire D-53 Grenadier. 01018_ D-53 Grenadier is broken beyond repair. 01023_ P-60 Hacker fails to hack Gladiator 4a. 01024_ Acquired 6 matter. 01024_ P-60 Hacker fails to hack Gladiator 4a. 01027_ Gladiator 4a destroyed. Map ----- +----------------------------------------------------+ | | | | | | | | | | | | | | | | | | | | | | | ??#??????????????????????????????????????????????? | | ??#??????????#??????#?#??????????????????????????? | | ############???###############???????????????????? | | ##??""" #???????????????????? | | """" """"" #?? "Y" """ """ #???????????????????? | | """" """"" #?# " " """ """ #???????????????????? | | """" """"" ### """ """ #???????????????????? | | #?# #???????????????????? | | ###+##+################+############+?#??????????? | | ??????????? | | % ??????????? | | Y= ??????????? | | ###+##########"Y"######%####### ######???????????? | | #???#"""#??#!r %hpuh #???#??????????????? | | ##???#####??# %@Y =k#??????????????????? | | #???????????# d da#??????????????????? | | #???????????# rgi b!#???#??????????????? | | #????#??????# tbg d #??????????????????? | | #?????????#?# ! #??????????????????? | | #???????????# = ! #??????????????????? | | #???????????# a! #???#??????????????? | | #???????????###########??????????????????? | | #### ####??????#?????????????????????????????????? | | #???##???????????????????????????????????????????? | | ?????????#????#??????????????????????????????????? | | ??#??????????????????????????????????????????????? | | ???????#?????????????????????????????????????????? | | ?????????????????????????????????????????????????? | | ?????????????????????????????????????????????????? | | ????????????????????????????????????????????????? | | ???????????????????????????????????????????????? | | ??????????????????????????????????????????????? | | ?????????????????????????????????????????????? | | ????????????????????????????????????????????? | | ???????????????????????????????????????????? | | ???????????????????????????????????????????? | | ?????????????????????????????????????????????? | | ???????????????????????????????????????????????? | | ?????????????????????????????????????????????????? | +----------------------------------------------------+ Best States ------------- Heat Dissipation 25 Energy Generation 15 Energy Capacity 250 Matter Stores 300 Matter Capacity 300 Sight Range 16 Terrain Scan Range 16 Terrain Scan Density 10 Evasion (%) 55 Item Schematics ----------------- None Robot Schematics ------------------ None Fabricated ------------ Nothing Alien Tech Used ----------------- None Achievements -------------- None Challenges ------------ None Game ------ Seed WeldingCoreFrame Manual? 0 Play Time 00:15:40 Cumulative 38.4 hours Start 2024.06.04 @ 19:41:44 End 2024.06.04 @ 19:55:39 Sessions 1 Manual Loads 0 Difficulty Rogue Special Mode None Game No. 43 Rogue 43 Adventurer 0 Explorer 0 Win Type - Total 0 Types 0/0/0/0/0/0/0/0/0 Lore% 29 Gallery% 28 Achievement% 24 Wizard Run 0 Options --------- Layout 0 ASCII 0 Keyboard 1 Movement Numpad Keybinds 0 Fullscreen 2 Font 18/SmallcapsGlow Map View 76x50 Zoom Use 0% Tactical HUD 1 Map Filters NONE Filters NONE Steam 1 RUN: 0eaec554-dae4-4006-824f-e9d4417f7a5c